Workbook

Sheet przykład 1
B1: Przykład 1.
B2: Zyski (w mln zł) w losowej próbie 7 przedsiębiorstw w roku 2019 wyniosły: 10, 13, 7, 11, 8, 10, 15.
B3: Za pomocą poznanych mierników dokonaj wszechstronnego opisu rozkładu zysków.
B5: xi | C5: xi-xsr | D5: (xi-xsr)^2 | E5: |xi-xsr|
B6: 7 | C6: =B6-$C$17 -> -3.57 | D6: =C6^2 -> 12.76 | E6: =ABS(C6) -> 3.57
B7: 8 | C7: =B7-$C$17 -> -2.57 | D7: =C7^2 -> 6.61 | E7: =ABS(C7) -> 2.57
B8: 10 | C8: -0.57 | D8: 0.33 | E8: 0.57
B9: 10 | C9: -0.57 | D9: 0.33 | E9: 0.57
B10: 11 | C10: 0.43 | D10: 0.18 | E10: 0.43
B11: 13 | C11: 2.43 | D11: 5.90 | E11: 2.43
B12: 15 | C12: 4.43 | D12: 19.61 | E12: 4.43
B14: =SUM(B6:B12) -> 74 | D14: =SUM(D6:D12) -> 45.71 | E14: =SUM(E6:E12) -> 14.57
B16: n | C16: 7
A17: średnia | B17: xsr | C17: =B14/C16 -> 10.57
A18: modalna | B18: Mo | C18: 10 | D18: wartość najczęściej występująca w szeregu wynosi 10
A19: mediana | B19: Me=Q2 | C19: 10 | D19: w badanej zbiorowości przedsiębiorstw co najmniej 50% obserwacji zysku jest mniejszych lub równych 10 mln złotych i jednocześnie co najmniej 50% większych lub równych 10 mln złotych
A20: kwartyl 1 | B20: Q1 | C20: =_xlfn.QUARTILE.INC(B6:B12,1) -> 9 | D20: w badanej zbiorowości przedsiębiorstw co najmniej 25% obserwacji zysku jest mniejszych lub równych 9 mln złotych i jednocześnie co najmniej 75% większych lub równych 9 mln złotych
A21: kwartyl 3 | B21: Q3 | C21: =_xlfn.QUARTILE.INC(B6:B12,3) -> 12 | D21: w badanej zbiorowości przedsiębiorstw co najmniej 75% obserwacji zysku jest mniejszych lub równych 12 mln złotych i jednocześnie co najmniej 25% większych lub równych 12 mln złotych
B24: S2(x) | C24: =D14/C16 -> 6.53 | D24: wariancja
B25: S(x) | C25: =SQRT(C24) -> 2.56 | D25: odchylenie standardowe | E25: W badanej zbiorowości przedsiębiorstw wartości zysku odchylają się od wartości średniej przeciętnie o 2,56 mln zł.
B26: d(x) | C26: =E14/C16 -> 2.08 | D26: odchylenie przeciętne | E26: W badanej zbiorowości przedsiębiorstw wartości zysku odchylają się od wartości średniej przeciętnie o 2,08 mln zł.
B27: V(x) | C27: =C25/C17 -> 24.17% | D27: współczynnik zmienności | E27: W badanej zbiorowości przedsiębiorstw odchylenie standardowe wartości zysku stanowi 24,17% wartości średniej. Zróżnicowanie przedsiębiorstw pod względem wartości zysku jest umiarkowane.

Sheet przykład 2
A1: Przykład 2.
A2: Poniższa tabela zawiera informacje dotyczące wydatków na ksero w ciągu jednego semestru w pewnej grupie studentów.
A3: Za pomocą poznanych mierników dokonaj wszechstronnego opisu rozkładu wydatków.
B5: wydatki na ksero (w zł) | E5: <0,10) | F5: <10,20) | G5: <20,30) | H5: <30,40>
B6: liczba studentów | E6: 18 | F6: 31 | G6: 39 | H6: 12
A9: xd dolna granica | B9: xg górna granica | C9: fi | D9: xi' | E9: xi'*fi | F9: rozpiętość (delta xi) | G9: fi skum | H9: xi'-xsr | I9: (xi'-xsr)^2 | J9: ((xi'-xsr)^2)*fi | K9: |xi'-xsr| | L9: |xi'-xsr|*fi
A10: 0 | B10: 10 | C10: 18 | D10: =(A10+B10)/2 -> 5 | E10: =(C10*D10) -> 90 | F10: =B10-A10 -> 10 | G10: =C10 -> 18 | H10: =D10-$C$17 -> -14.50 | I10: =H10^2 -> 210.25 | J10: =I10*C10 -> 3784.5 | K10: =ABS(H10) -> 14.5 | L10: =K10*C10 -> 261
A11: 10 | B11: 20 | C11: 31 | D11: =(A11+B11)/2 -> 15 | E11: =(C11*D11) -> 465 | F11: =B11-A11 -> 10 | G11: =G10+C11 -> 49 | H11: =D11-$C$17 -> -4.50 | I11: =H11^2 -> 20.25 | J11: =I11*C11 -> 627.75 | K11: =ABS(H11) -> 4.5 | L11: =K11*C11 -> 139.5
A12: 20 | B12: 30 | C12: 39 | D12: =(A12+B12)/2 -> 25 | E12: =(C12*D12) -> 975 | F12: =B12-A12 -> 10 | G12: =G11+C12 -> 88 | H12: =D12-$C$17 -> 5.50 | I12: =H12^2 -> 30.25 | J12: =I12*C12 -> 1179.75 | K12: =ABS(H12) -> 5.5 | L12: =K12*C12 -> 214.5
A13: 30 | B13: 40 | C13: 12 | D13: =(A13+B13)/2 -> 35 | E13: =(C13*D13) -> 420 | F13: =B13-A13 -> 10 | G13: =G12+C13 -> 100 | H13: =D13-$C$17 -> 15.50 | I13: =H13^2 -> 240.25 | J13: =I13*C13 -> 2883 | K13: =ABS(H13) -> 15.5 | L13: =K13*C13 -> 186
A15: liczebność | B15: n | C15: =SUM(C10:C13) -> 100 | E15: =SUM(E10:E13) -> 1950 | J15: =SUM(J10:J13) -> 8475 | L15: =SUM(L10:L13) -> 801
A17: średnia | B17: xsr | C17: =(E15/C15) -> 19.5 | E17: Mo | F17: =A12+((C12-C11)/((C12-C11)+(C12-C13)))*F12 -> 22.29 | G17: modalna
A19: mediana | B19: Me=Q2 | C19: =A12+10/C12*(G19-G11) -> 20.26 | D19: p | E19: 0.50 | F19: n*p | G19: =E19*C15 -> 50 | H19: znajduje się w 3 przedziale
A20: kwartyl 1 | B20: Q1 | C20: =A11+10/C11*(G20-G10) -> 12.26 | D20: p | E20: 0.25 | F20: n*p | G20: =E20*C15 -> 25 | H20: znajduje się w 2 przedziale
A21: kwartyl 3 | B21: Q3 | C21: =A12+10/C12*(G21-G11) -> 26.67 | D21: p | E21: 0.75 | F21: n*p | G21: =E21*C15 -> 75 | H21: znajduje się w 3 przedziale
A23: wariancja | B23: S2(x) | C23: =J15/C15 -> 84.75
A24: odchylenie standardowe | B24: S(x) | C24: =SQRT(C23) -> 9.21 | E24: Interpretacja: W badanej zbiorowości studentów wartości wydatków na ksero odchylają się od wartości średniej przeciętnie o 9,21 zł.
A25: odchylenie przeciętne | B25: d(x) | C25: =L15/C15 -> 8.01 | E25: Interpretacja: W badanej zbiorowości studentów wartości wydatków na ksero odchylają się od wartości średniej przeciętnie o 8,01 zł.
A26: współczynnik zmienności | B26: V(x) | C26: =C24/C17 -> 47.21% | E26: Interpretacja: W badanej zbiorowości studentów odchylenie standardowe wydatków na ksero stanowi 47,21 % wartości średniej. Zróżnicowanie studentów pod względem wydatków na ksero jest silna.

Sheet zadanie 1
B2: Zadanie 1.
B3: Zyski (w mln zł) w losowej próbie 7 przedsiębiorstw w roku 2019 wyniosły: 20, 26, 17, 21, 28, 20, 25.
B4: Za pomocą poznanych mierników dokonaj wszechstronnego opisu rozkładu zysków.

Sheet zadanie 2
B2: Zadanie 2.
B3: Poniższa tabela zawiera informacje dotyczące wydatków na ksero w ciągu jednego semestru w pewnej grupie studentów.
B4: Za pomocą poznanych mierników dokonaj wszechstronnego opisu rozkładu wydatków.
C6: wydatki na ksero (w zł) | F6: <0,10) | G6: <10,20) | H6: <20,30) | I6: <30,40>
C7: liczba studentów | F7: 28 | G7: 41 | H7: 49 | I7: 32
